[Event "Live Chess"]
[Site "Chess.com"]
[Date "2023.05.21"]
[Round "-"]
[White "ms_lilley"]
[Black "whitedjohn"]
[Result "0-1"]
[WhiteElo "598"]
[BlackElo "1642"]
[TimeControl "300"]
[EndTime "1:47:08 PDT"]
[Termination "whitedjohn won by checkmate"]

1. d4 {[%clk 0:04:55.2]} 1... Nf6 {[%clk 0:04:59.5]} 2. e3 {[%clk 0:04:53.4]}
2... d5 {[%clk 0:04:58.2]} 3. h3 {[%clk 0:04:52.1]} 3... c5 {[%clk 0:04:55.3]}
4. c3 {[%clk 0:04:49.6]} 4... cxd4 {[%clk 0:04:53.8]} 5. cxd4 {[%clk 0:04:48]}
5... Nc6 {[%clk 0:04:52.9]} 6. a3 {[%clk 0:04:45.5]} 6... Bf5 {[%clk 0:04:51.5]}
7. b4 {[%clk 0:04:42.7]} 7... e6 {[%clk 0:04:49.8]} 8. Bb2 {[%clk 0:04:41]} 8...
a6 {[%clk 0:04:47.6]} 9. Nd2 {[%clk 0:04:37.7]} 9... Be7 {[%clk 0:04:46.1]} 10.
Ngf3 {[%clk 0:04:35.9]} 10... O-O {[%clk 0:04:44.4]} 11. Ne5 {[%clk 0:04:34.3]}
11... Nxe5 {[%clk 0:04:42.2]} 12. dxe5 {[%clk 0:04:32.5]} 12... Ne4 {[%clk
0:04:40.9]} 13. Nxe4 {[%clk 0:04:29.8]} 13... Bxe4 {[%clk 0:04:39.8]} 14. f3
{[%clk 0:04:22.4]} 14... Bg6 {[%clk 0:04:36.5]} 15. Bd3 {[%clk 0:04:18]} 15...
Qb6 {[%clk 0:04:32.5]} 16. O-O {[%clk 0:04:10.5]} 16... Qxe3+ {[%clk 0:04:29.6]}
17. Kh1 {[%clk 0:03:57.3]} 17... Qxd3 {[%clk 0:04:28.2]} 18. Qxd3 {[%clk
0:03:47.2]} 18... Bxd3 {[%clk 0:04:26.7]} 19. Rfe1 {[%clk 0:03:41.6]} 19... Rac8
{[%clk 0:04:23.2]} 20. a4 {[%clk 0:03:38]} 20... Rc2 {[%clk 0:04:21.1]} 21. Bd4
{[%clk 0:03:18.2]} 21... Rfc8 {[%clk 0:04:17.4]} 22. a5 {[%clk 0:03:05]} 22...
Bxb4 {[%clk 0:04:14.5]} 23. Re3 {[%clk 0:02:55.6]} 23... Bd2 {[%clk 0:04:07.6]}
24. Rxd3 {[%clk 0:02:53.5]} 24... Bc3 {[%clk 0:03:52.1]} 25. Rg1 {[%clk
0:02:33.1]} 25... Bxd4 {[%clk 0:03:50.2]} 26. Rxd4 {[%clk 0:02:31.5]} 26... Ra2
{[%clk 0:03:44.4]} 27. Rb4 {[%clk 0:02:22.4]} 27... Rc7 {[%clk 0:03:42.8]} 28.
Rgb1 {[%clk 0:02:14.4]} 28... Rxa5 {[%clk 0:03:40]} 29. Rxb7 {[%clk 0:02:11.7]}
29... Rxb7 {[%clk 0:03:38.8]} 30. Rxb7 {[%clk 0:02:10]} 30... g6 {[%clk
0:03:34.8]} 31. Rb8+ {[%clk 0:02:04.7]} 31... Kg7 {[%clk 0:03:33.4]} 32. g4
{[%clk 0:01:54.5]} 32... d4 {[%clk 0:03:31.9]} 33. Kg2 {[%clk 0:01:52.8]} 33...
Rxe5 {[%clk 0:03:29.8]} 34. Rd8 {[%clk 0:01:47.7]} 34... Rd5 {[%clk 0:03:28]}
35. Ra8 {[%clk 0:01:34]} 35... d3 {[%clk 0:03:26.6]} 36. Kf1 {[%clk 0:01:32.4]}
36... d2 {[%clk 0:03:23.9]} 37. Ke2 {[%clk 0:01:30.5]} 37... d1=Q+ {[%clk
0:03:22.7]} 38. Kf2 {[%clk 0:01:26.4]} 38... Rd2+ {[%clk 0:03:21.1]} 39. Kg3
{[%clk 0:01:25]} 39... Qe1+ {[%clk 0:03:18.8]} 40. Kf4 {[%clk 0:01:22.5]} 40...
Rd4+ {[%clk 0:03:17.4]} 41. Kg5 {[%clk 0:01:20.6]} 41... h6# {[%clk 0:03:16.1]}
0-1

[Event "Live Chess"]
[Site "Chess.com"]
[Date "2023.05.21"]
[Round "-"]
[White "smashu34"]
[Black "rasrae1364"]
[Result "0-1"]
[WhiteElo "345"]
[BlackElo "1730"]
[TimeControl "300"]
[EndTime "1:47:13 PDT"]
[Termination "rasrae1364 won on time"]

1. e4 {[%clk 0:04:56.5]} 1... d5 {[%clk 0:04:53.8]} 2. exd5 {[%clk 0:04:54.1]}
2... Qxd5 {[%clk 0:04:49.1]} 3. c4 {[%clk 0:04:42.5]} 3... Qf5 {[%clk
0:04:44.7]} 4. Qf3 {[%clk 0:04:36.8]} 4... Nc6 {[%clk 0:04:39.4]} 5. Nc3 {[%clk
0:04:28.9]} 5... Nd4 {[%clk 0:04:34.9]} 6. Qe3 {[%clk 0:04:17.4]} 6... Nc2+
{[%clk 0:04:30.1]} 7. Ke2 {[%clk 0:04:09.2]} 7... e5 {[%clk 0:04:25.7]} 8. Qd3
{[%clk 0:04:01.8]} 8... Qxd3+ {[%clk 0:04:20.7]} 9. Kxd3 {[%clk 0:04:00]} 9...
Bf5+ {[%clk 0:04:15.8]} 10. Ke2 {[%clk 0:03:53.5]} 10... Nxa1 {[%clk 0:04:11.3]}
11. b3 {[%clk 0:03:48.8]} 11... O-O-O {[%clk 0:04:06.1]} 12. Nf3 {[%clk
0:03:39.6]} 12... f6 {[%clk 0:04:01.3]} 13. g3 {[%clk 0:03:32]} 13... Nc2 {[%clk
0:03:56.8]} 14. Nh4 {[%clk 0:03:27.1]} 14... Bg4+ {[%clk 0:03:51.4]} 15. f3
{[%clk 0:03:10.8]} 15... Be6 {[%clk 0:03:46.6]} 16. Kd1 {[%clk 0:02:58.5]} 16...
Ne3+ {[%clk 0:03:41.7]} 17. Ke2 {[%clk 0:02:49.4]} 17... Nxf1 {[%clk 0:03:37.5]}
18. Rxf1 {[%clk 0:02:44.9]} 18... Ne7 {[%clk 0:03:32]} 19. f4 {[%clk 0:02:42.9]}
19... Nc6 {[%clk 0:03:26.5]} 20. fxe5 {[%clk 0:02:37.3]} 20... Bg4+ {[%clk
0:03:21.4]} 21. Ke3 {[%clk 0:02:30.4]} 21... Bc5+ {[%clk 0:03:15.4]} 22. Kf4
{[%clk 0:02:13.5]} 22... Nxe5 {[%clk 0:03:11]} 23. Nf5 {[%clk 0:02:01.3]} 23...
g5+ {[%clk 0:03:06.4]} 24. Ke4 {[%clk 0:01:46.5]} 24... Rhe8 {[%clk 0:03:01.8]}
25. Ng7 {[%clk 0:01:38.8]} 25... Nf3+ {[%clk 0:02:57.4]} 26. Nxe8 {[%clk
0:01:33.9]} 26... Rxe8+ {[%clk 0:02:48]} 27. Kd5 {[%clk 0:01:23]} 27... c6+
{[%clk 0:02:46.3]} 28. Kxc5 {[%clk 0:01:15.6]} 28... Re5+ {[%clk 0:02:40.9]} 29.
Kd6 {[%clk 0:01:06.5]} 29... b6 {[%clk 0:02:38.8]} 30. Kxc6 {[%clk 0:01:02.4]}
30... Re6+ {[%clk 0:02:37.9]} 31. Kd5 {[%clk 0:00:59.3]} 31... Kd7 {[%clk
0:02:33.8]} 32. d4 {[%clk 0:00:49.1]} 32... Rd6+ {[%clk 0:02:32.7]} 33. Ke4
{[%clk 0:00:41.2]} 33... f5+ {[%clk 0:02:32.6]} 34. Ke3 {[%clk 0:00:34]} 34...
Re6+ {[%clk 0:02:31.7]} 35. Kf2 {[%clk 0:00:30.4]} 35... Nxd4 {[%clk 0:02:28.1]}
36. Bxg5 {[%clk 0:00:23.6]} 36... Re2+ {[%clk 0:02:23.5]} 0-1

[Event "Live Chess"]
[Site "Chess.com"]
[Date "2023.05.21"]
[Round "-"]
[White "Biranidun"]
[Black "KeithArkell"]
[Result "1-0"]
[WhiteElo "2546"]
[BlackElo "2508"]
[TimeControl "300"]
[EndTime "1:47:14 PDT"]
[Termination "Biranidun won on time"]

1. e4 {[%clk 0:04:59.7]} 1... c6 {[%clk 0:04:57.3]} 2. d4 {[%clk 0:04:58.4]}
2... d5 {[%clk 0:04:56.4]} 3. e5 {[%clk 0:04:58.1]} 3... c5 {[%clk 0:04:55.7]}
4. dxc5 {[%clk 0:04:58]} 4... Nc6 {[%clk 0:04:54.9]} 5. f4 {[%clk 0:04:57.1]}
5... e6 {[%clk 0:04:53.6]} 6. Be3 {[%clk 0:04:55]} 6... d4 {[%clk 0:04:53.1]} 7.
Bf2 {[%clk 0:04:54.6]} 7... Bxc5 {[%clk 0:04:52.3]} 8. Nd2 {[%clk 0:04:54]} 8...
Nge7 {[%clk 0:04:51.7]} 9. a3 {[%clk 0:04:53.4]} 9... Nd5 {[%clk 0:04:47.7]} 10.
Qg4 {[%clk 0:04:50.4]} 10... O-O {[%clk 0:04:45.4]} 11. Bd3 {[%clk 0:04:49.3]}
11... f5 {[%clk 0:04:38.7]} 12. Qf3 {[%clk 0:04:46.3]} 12... a5 {[%clk
0:04:34.3]} 13. Ne2 {[%clk 0:04:45.2]} 13... b6 {[%clk 0:04:30.6]} 14. g4 {[%clk
0:04:41.5]} 14... Ba6 {[%clk 0:04:27.9]} 15. gxf5 {[%clk 0:04:37.6]} 15... Bxd3
{[%clk 0:04:26.4]} 16. cxd3 {[%clk 0:04:34.6]} 16... Rxf5 {[%clk 0:04:25]} 17.
Qg4 {[%clk 0:04:26.2]} 17... Qf8 {[%clk 0:04:19.1]} 18. Ne4 {[%clk 0:04:18.1]}
18... Rc8 {[%clk 0:03:32.5]} 19. Rg1 {[%clk 0:04:03.1]} 19... g6 {[%clk
0:03:29.4]} 20. h4 {[%clk 0:03:58.3]} 20... Kh8 {[%clk 0:03:09.8]} 21. Rc1
{[%clk 0:03:38.4]} 21... Nxf4 {[%clk 0:02:31.2]} 22. Nxf4 {[%clk 0:03:35]} 22...
Nxe5 {[%clk 0:02:30.4]} 23. Qh3 {[%clk 0:02:26]} 23... Rxf4 {[%clk 0:02:24.1]}
24. Rg3 {[%clk 0:01:15.6]} 24... Nxd3+ {[%clk 0:02:08.5]} 25. Rxd3 {[%clk
0:01:13.2]} 25... Rxe4+ {[%clk 0:02:07.7]} 26. Kf1 {[%clk 0:01:12]} 26... Rf4
{[%clk 0:01:56]} 27. Rc2 {[%clk 0:01:10.8]} 27... e5 {[%clk 0:01:42.3]} 28. b4
{[%clk 0:01:07.1]} 28... axb4 {[%clk 0:01:41.7]} 29. axb4 {[%clk 0:01:05.8]}
29... e4 {[%clk 0:01:17.1]} 30. Rxd4 {[%clk 0:01:05.1]} 30... Rf3 {[%clk
0:01:13.3]} 31. Qe6 {[%clk 0:00:52.8]} 31... e3 {[%clk 0:01:08.6]} 32. Qe5+
{[%clk 0:00:45.3]} 32... Qg7 {[%clk 0:00:38.5]} 33. Qxg7+ {[%clk 0:00:42.7]}
33... Kxg7 {[%clk 0:00:38]} 34. bxc5 {[%clk 0:00:40.2]} 34... bxc5 {[%clk
0:00:26]} 35. Rdc4 {[%clk 0:00:35.7]} 35... Rxf2+ {[%clk 0:00:23.9]} 36. Rxf2
{[%clk 0:00:34.8]} 36... exf2 {[%clk 0:00:23.4]} 37. Kxf2 {[%clk 0:00:34.7]}
37... Rf8+ {[%clk 0:00:21]} 38. Kg3 {[%clk 0:00:33.5]} 38... Rf5 {[%clk
0:00:20.3]} 39. Kg4 {[%clk 0:00:32.7]} 39... Kh6 {[%clk 0:00:19.4]} 40. Rc1
{[%clk 0:00:30.8]} 40... Rd5 {[%clk 0:00:19]} 41. Kg3 {[%clk 0:00:29.3]} 41...
Rd3+ {[%clk 0:00:17.4]} 42. Kg4 {[%clk 0:00:28.3]} 42... Rd4+ {[%clk 0:00:16.7]}
43. Kg3 {[%clk 0:00:27.9]} 43... c4 {[%clk 0:00:16.3]} 44. Rc2 {[%clk
0:00:22.8]} 44... Kh5 {[%clk 0:00:15.1]} 45. Rh2 {[%clk 0:00:21.9]} 45... Rg4+
{[%clk 0:00:14]} 46. Kf3 {[%clk 0:00:20.1]} 46... Rxh4 {[%clk 0:00:13.9]} 47.
Rd2 {[%clk 0:00:18]} 47... c3 {[%clk 0:00:12.8]} 48. Rd5+ {[%clk 0:00:17.3]}
48... g5 {[%clk 0:00:12.4]} 49. Rc5 {[%clk 0:00:17.2]} 49... Rh2 {[%clk
0:00:10.6]} 50. Kg3 {[%clk 0:00:16.6]} 50... Rd2 {[%clk 0:00:08.1]} 51. Rc7
{[%clk 0:00:16.5]} 51... h6 {[%clk 0:00:05.9]} 52. Rc6 {[%clk 0:00:16.4]} 52...
Rd3+ {[%clk 0:00:04.8]} 53. Kf2 {[%clk 0:00:15.4]} 53... Kg4 {[%clk 0:00:04.2]}
54. Ke2 {[%clk 0:00:15.3]} 54... Rd2+ {[%clk 0:00:03.5]} 55. Ke3 {[%clk
0:00:14.5]} 55... Rc2 {[%clk 0:00:03.4]} 56. Rc4+ {[%clk 0:00:13.9]} 56... Kg3
{[%clk 0:00:02.4]} 57. Kd3 {[%clk 0:00:13.8]} 57... g4 {[%clk 0:00:01.8]} 58.
Kxc2 {[%clk 0:00:13]} 58... h5 {[%clk 0:00:01.2]} 59. Rxc3+ {[%clk 0:00:12.9]}
1-0

[Event "Live Chess"]
[Site "Chess.com"]
[Date "2023.05.21"]
[Round "-"]
[White "Mugzwang"]
[Black "jagbama"]
[Result "1-0"]
[WhiteElo "1557"]
[BlackElo "1164"]
[TimeControl "300"]
[EndTime "1:47:25 PDT"]
[Termination "Mugzwang won on time"]

1. Nf3 {[%clk 0:04:57.8]} 1... Nc6 {[%clk 0:04:53]} 2. d4 {[%clk 0:04:56.3]}
2... d5 {[%clk 0:04:51.6]} 3. g3 {[%clk 0:04:55.3]} 3... Bg4 {[%clk 0:04:48.2]}
4. Bg2 {[%clk 0:04:54.4]} 4... f6 {[%clk 0:04:43.3]} 5. O-O {[%clk 0:04:53.8]}
5... h5 {[%clk 0:04:36.8]} 6. h3 {[%clk 0:04:30.5]} 6... Bxf3 {[%clk 0:04:35]}
7. Bxf3 {[%clk 0:04:25.9]} 7... h4 {[%clk 0:04:34.3]} 8. g4 {[%clk 0:04:00.3]}
8... e6 {[%clk 0:04:15.2]} 9. Qd3 {[%clk 0:03:51.6]} 9... Nge7 {[%clk
0:04:03.5]} 10. g5 {[%clk 0:03:42.4]} 10... fxg5 {[%clk 0:03:35.5]} 11. Bxg5
{[%clk 0:03:36.8]} 11... Qd7 {[%clk 0:03:20.1]} 12. Nc3 {[%clk 0:03:20.8]} 12...
Kd8 {[%clk 0:03:05.9]} 13. Bg4 {[%clk 0:03:04.4]} 13... Qd6 {[%clk 0:02:30.7]}
14. Qe3 {[%clk 0:02:52.2]} 14... Nb4 {[%clk 0:01:50.1]} 15. Qxe6 {[%clk
0:02:29.1]} 15... Qxe6 {[%clk 0:01:47.6]} 16. Bxe6 {[%clk 0:02:27]} 16... Nxc2
{[%clk 0:01:46.9]} 17. Rad1 {[%clk 0:02:21]} 17... g6 {[%clk 0:01:40]} 18. Nxd5
{[%clk 0:02:04.4]} 18... Rh7 {[%clk 0:01:33.9]} 19. Nf6 {[%clk 0:01:32.6]} 19...
Rh5 {[%clk 0:01:12.7]} 20. Nxh5 {[%clk 0:01:30.3]} 20... gxh5 {[%clk 0:01:12.2]}
21. d5 {[%clk 0:01:25.7]} 21... Ke8 {[%clk 0:00:50.8]} 22. Bxh4 {[%clk
0:01:20.7]} 22... Nf5 {[%clk 0:00:47.5]} 23. Bxf5 {[%clk 0:01:15.9]} 23... Bd6
{[%clk 0:00:45.8]} 24. Bxc2 {[%clk 0:01:13.9]} 24... Kd7 {[%clk 0:00:37.1]} 25.
Bf5+ {[%clk 0:01:09.2]} 25... Ke8 {[%clk 0:00:32.3]} 26. e4 {[%clk 0:01:06.8]}
26... Kf7 {[%clk 0:00:30.6]} 27. Be6+ {[%clk 0:01:04.3]} 27... Kg6 {[%clk
0:00:21.9]} 28. f4 {[%clk 0:01:01.3]} 28... Re8 {[%clk 0:00:17.8]} 29. f5+
{[%clk 0:00:59.5]} 29... Kh6 {[%clk 0:00:15.8]} 30. Rd2 {[%clk 0:00:55.8]} 30...
c6 {[%clk 0:00:12.2]} 31. Rg2 {[%clk 0:00:54.6]} 31... Re7 {[%clk 0:00:10.1]}
32. Rg6+ {[%clk 0:00:53.1]} 32... Kh7 {[%clk 0:00:09.3]} 33. Rf2 {[%clk
0:00:51.5]} 33... Bc5 {[%clk 0:00:05.9]} 34. Bxe7 {[%clk 0:00:48.7]} 34... Bxf2+
{[%clk 0:00:04.5]} 35. Kxf2 {[%clk 0:00:48.4]} 35... h4 {[%clk 0:00:02.7]} 36.
Rg5 {[%clk 0:00:46.5]} 36... cxd5 {[%clk 0:00:01.1]} 37. exd5 {[%clk 0:00:45.2]}
1-0

[Event "Live Chess"]
[Site "Chess.com"]
[Date "2023.05.21"]
[Round "-"]
[White "Woodpusher500"]
[Black "stevochess11"]
[Result "0-1"]
[WhiteElo "1045"]
[BlackElo "1739"]
[TimeControl "300"]
[EndTime "1:47:26 PDT"]
[Termination "stevochess11 won by resignation"]

1. e4 {[%clk 0:04:57]} 1... c5 {[%clk 0:04:59.1]} 2. Nf3 {[%clk 0:04:55]} 2...
g6 {[%clk 0:04:57.9]} 3. d4 {[%clk 0:04:46.9]} 3... cxd4 {[%clk 0:04:56.9]} 4.
Nxd4 {[%clk 0:04:44.1]} 4... Nc6 {[%clk 0:04:55.6]} 5. Be3 {[%clk 0:04:34.5]}
5... Bg7 {[%clk 0:04:53.8]} 6. c3 {[%clk 0:04:26.1]} 6... Nf6 {[%clk 0:04:52.3]}
7. f3 {[%clk 0:04:18.2]} 7... d5 {[%clk 0:04:48.2]} 8. Qd3 {[%clk 0:04:09.5]}
8... dxe4 {[%clk 0:04:43.8]} 9. fxe4 {[%clk 0:04:07.8]} 9... Ng4 {[%clk
0:04:42.8]} 10. Be2 {[%clk 0:04:00.4]} 10... Nce5 {[%clk 0:04:26.7]} 11. Qd2
{[%clk 0:03:55.3]} 11... O-O {[%clk 0:04:19.1]} 12. h3 {[%clk 0:03:50.6]} 12...
Nxe3 {[%clk 0:04:03.2]} 13. Qxe3 {[%clk 0:03:48.7]} 13... Qb6 {[%clk 0:03:33.4]}
14. b3 {[%clk 0:03:40.7]} 14... Bd7 {[%clk 0:03:28.4]} 15. O-O {[%clk 0:03:32]}
15... Rac8 {[%clk 0:03:18.8]} 16. Qd2 {[%clk 0:03:04.5]} 16... Nc6 {[%clk
0:03:11.8]} 17. Na3 {[%clk 0:02:29.6]} 17... Nxd4 {[%clk 0:03:05.6]} 18. Qxd4
{[%clk 0:02:24.6]} 18... Qxd4+ {[%clk 0:03:03.4]} 19. cxd4 {[%clk 0:02:20.9]}
19... Bxd4+ {[%clk 0:03:02.9]} 20. Kh1 {[%clk 0:02:19]} 20... Bxa1 {[%clk
0:03:02]} 21. Rxa1 {[%clk 0:02:16.4]} 21... Rc3 {[%clk 0:02:57.7]} 22. Rd1
{[%clk 0:02:10.7]} 22... Bc6 {[%clk 0:02:53.4]} 23. Bd3 {[%clk 0:02:00.2]} 23...
Rd8 {[%clk 0:02:51.2]} 24. Be2 {[%clk 0:01:53.2]} 24... Rxd1+ {[%clk 0:02:47.4]}
25. Bxd1 {[%clk 0:01:51.7]} 25... Bxe4 {[%clk 0:02:46.1]} 0-1

[Event "Live Chess"]
[Site "Chess.com"]
[Date "2023.05.21"]
[Round "-"]
[White "HoarseyHorsey"]
[Black "WelshTiger"]
[Result "0-1"]
[WhiteElo "1467"]
[BlackElo "2349"]
[TimeControl "300"]
[EndTime "1:47:42 PDT"]
[Termination "WelshTiger won by resignation"]

1. d4 {[%clk 0:04:58.9]} 1... Nf6 {[%clk 0:04:58.5]} 2. c4 {[%clk 0:04:58.1]}
2... c5 {[%clk 0:04:57]} 3. d5 {[%clk 0:04:57]} 3... e6 {[%clk 0:04:56.6]} 4.
Nc3 {[%clk 0:04:54.7]} 4... exd5 {[%clk 0:04:56.1]} 5. cxd5 {[%clk 0:04:54.5]}
5... d6 {[%clk 0:04:55.8]} 6. Nf3 {[%clk 0:04:52.7]} 6... g6 {[%clk 0:04:54.9]}
7. Nd2 {[%clk 0:04:51.4]} 7... Bg7 {[%clk 0:04:53.2]} 8. e4 {[%clk 0:04:50.3]}
8... O-O {[%clk 0:04:52]} 9. Be2 {[%clk 0:04:49.4]} 9... Ne8 {[%clk 0:04:51.3]}
10. O-O {[%clk 0:04:45.8]} 10... f5 {[%clk 0:04:50.5]} 11. f3 {[%clk 0:04:44.2]}
11... f4 {[%clk 0:04:49.1]} 12. Ndb1 {[%clk 0:04:39.4]} 12... a6 {[%clk
0:04:45.4]} 13. a4 {[%clk 0:04:37.6]} 13... Nd7 {[%clk 0:04:44.1]} 14. Nd2
{[%clk 0:04:16.5]} 14... Ne5 {[%clk 0:04:41.4]} 15. Nc4 {[%clk 0:04:14.3]} 15...
Rb8 {[%clk 0:04:34.4]} 16. Bd2 {[%clk 0:04:03.1]} 16... Qh4 {[%clk 0:04:16.8]}
17. Qb3 {[%clk 0:03:18.7]} 17... Nxc4 {[%clk 0:04:13.5]} 18. Bxc4 {[%clk
0:03:16.8]} 18... Nc7 {[%clk 0:03:40.7]} 19. Rae1 {[%clk 0:03:06.5]} 19... Be5
{[%clk 0:03:37.8]} 20. Re2 {[%clk 0:02:57.4]} 20... g5 {[%clk 0:03:32.5]} 21.
Nd1 {[%clk 0:02:46.6]} 21... b5 {[%clk 0:03:19.1]} 22. axb5 {[%clk 0:02:45.3]}
22... axb5 {[%clk 0:03:18.1]} 23. Bxb5 {[%clk 0:02:42]} 23... Rxb5 {[%clk
0:03:14.6]} 24. Qd3 {[%clk 0:02:39]} 24... Ba6 {[%clk 0:03:11.2]} 25. Nc3 {[%clk
0:02:31.1]} 25... Rb6 {[%clk 0:03:08.9]} 26. Qc2 {[%clk 0:02:28]} 26... Bxe2
{[%clk 0:03:07.1]} 0-1

[Event "Live Chess"]
[Site "Chess.com"]
[Date "2023.05.21"]
[Round "-"]
[White "ProfPoisson"]
[Black "Argrath"]
[Result "0-1"]
[WhiteElo "1204"]
[BlackElo "1482"]
[TimeControl "300"]
[EndTime "1:47:50 PDT"]
[Termination "Argrath won by resignation"]

1. e4 {[%clk 0:04:54.8]} 1... c6 {[%clk 0:04:58.3]} 2. d4 {[%clk 0:04:53.1]}
2... d5 {[%clk 0:04:56.4]} 3. exd5 {[%clk 0:04:51.3]} 3... cxd5 {[%clk
0:04:53.6]} 4. c4 {[%clk 0:04:50.7]} 4... Nf6 {[%clk 0:04:50.4]} 5. Nc3 {[%clk
0:04:48.3]} 5... Nc6 {[%clk 0:04:48.6]} 6. Bg5 {[%clk 0:04:44.4]} 6... Be6
{[%clk 0:04:42.9]} 7. Nf3 {[%clk 0:04:14.7]} 7... g6 {[%clk 0:04:39.9]} 8. Bxf6
{[%clk 0:04:12.4]} 8... exf6 {[%clk 0:04:38.8]} 9. Bd3 {[%clk 0:04:00.4]} 9...
dxc4 {[%clk 0:04:26]} 10. d5 {[%clk 0:03:55.2]} 10... Bxd5 {[%clk 0:04:24.2]}
11. Qe2+ {[%clk 0:03:50.4]} 11... Be7 {[%clk 0:04:19.7]} 12. Bxc4 {[%clk
0:03:47.1]} 12... Bxc4 {[%clk 0:04:17.5]} 13. Qxc4 {[%clk 0:03:43.3]} 13... O-O
{[%clk 0:04:15.5]} 14. O-O {[%clk 0:03:39.9]} 14... Ne5 {[%clk 0:03:55.9]} 15.
Nxe5 {[%clk 0:03:33.2]} 15... fxe5 {[%clk 0:03:54.7]} 16. Rad1 {[%clk 0:03:28]}
16... Qc8 {[%clk 0:03:38.3]} 17. Qe4 {[%clk 0:03:13]} 17... Re8 {[%clk
0:03:15.3]} 18. h4 {[%clk 0:03:06.5]} 18... Bf8 {[%clk 0:03:07.1]} 19. h5 {[%clk
0:03:03.3]} 19... Qc6 {[%clk 0:02:38]} 20. hxg6 {[%clk 0:02:45.7]} 20... hxg6
{[%clk 0:02:36.7]} 21. Qg4 {[%clk 0:02:05.2]} 21... Rad8 {[%clk 0:02:32.6]} 22.
Ne4 {[%clk 0:01:53.1]} 22... Bg7 {[%clk 0:02:28.5]} 23. Rc1 {[%clk 0:01:44.1]}
23... Qb6 {[%clk 0:02:17.6]} 24. b3 {[%clk 0:01:38]} 24... Rd4 {[%clk
0:02:12.8]} 25. Rfd1 {[%clk 0:01:14.6]} 25... f5 {[%clk 0:02:03.8]} 26. Qe2
{[%clk 0:00:43.8]} 26... Rxe4 {[%clk 0:02:00]} 27. Qf3 {[%clk 0:00:23.1]} 27...
Rd8 {[%clk 0:01:44.6]} 28. Rxd8+ {[%clk 0:00:19.7]} 28... Qxd8 {[%clk
0:01:43.4]} 29. Qc3 {[%clk 0:00:16.2]} 29... Rd4 {[%clk 0:01:33.1]} 30. Qc8
{[%clk 0:00:11.5]} 30... Qxc8 {[%clk 0:01:29.4]} 31. Rxc8+ {[%clk 0:00:11]}
31... Kf7 {[%clk 0:01:26]} 0-1

[Event "Live Chess"]
[Site "Chess.com"]
[Date "2023.05.21"]
[Round "-"]
[White "Richardallis"]
[Black "Mikhail_Golubev"]
[Result "1-0"]
[WhiteElo "1886"]
[BlackElo "2466"]
[TimeControl "300"]
[EndTime "1:48:01 PDT"]
[Termination "Richardallis won on time"]

1. d4 {[%clk 0:04:57.1]} 1... Na6 {[%clk 0:04:58]} 2. Nf3 {[%clk 0:04:56]} 2...
c6 {[%clk 0:04:56.8]} 3. Bf4 {[%clk 0:04:55.3]} 3... g6 {[%clk 0:04:52.7]} 4. c3
{[%clk 0:04:54.2]} 4... Bg7 {[%clk 0:04:51.5]} 5. Nbd2 {[%clk 0:04:53.1]} 5...
Nf6 {[%clk 0:04:44.7]} 6. e4 {[%clk 0:04:51.4]} 6... O-O {[%clk 0:04:43.7]} 7.
Bd3 {[%clk 0:04:50.2]} 7... d5 {[%clk 0:04:39.8]} 8. e5 {[%clk 0:04:48.8]} 8...
Nh5 {[%clk 0:04:37.2]} 9. Bg3 {[%clk 0:04:47.6]} 9... f6 {[%clk 0:04:27.2]} 10.
Qe2 {[%clk 0:04:45.5]} 10... Bg4 {[%clk 0:04:08.5]} 11. h3 {[%clk 0:04:37.2]}
11... Nxg3 {[%clk 0:04:06.4]} 12. fxg3 {[%clk 0:04:36]} 12... Bd7 {[%clk
0:03:35.9]} 13. O-O {[%clk 0:04:30.9]} 13... Nc7 {[%clk 0:03:34.3]} 14. Rae1
{[%clk 0:04:28.8]} 14... Ne6 {[%clk 0:03:26]} 15. b4 {[%clk 0:04:16.3]} 15... f5
{[%clk 0:03:20.5]} 16. Nh2 {[%clk 0:04:06.5]} 16... Bh6 {[%clk 0:03:12.7]} 17.
Ndf3 {[%clk 0:04:04.4]} 17... a5 {[%clk 0:03:09.8]} 18. a3 {[%clk 0:04:02.8]}
18... axb4 {[%clk 0:03:08.7]} 19. axb4 {[%clk 0:04:02.4]} 19... Ra3 {[%clk
0:03:06.6]} 20. Qb2 {[%clk 0:03:58.8]} 20... Ra7 {[%clk 0:02:58.7]} 21. Ra1
{[%clk 0:03:56.5]} 21... Rxa1 {[%clk 0:02:49.3]} 22. Rxa1 {[%clk 0:03:55]} 22...
Be3+ {[%clk 0:02:47.2]} 23. Kh1 {[%clk 0:03:53]} 23... Ng7 {[%clk 0:02:33.7]}
24. Qe2 {[%clk 0:03:50.5]} 24... Bh6 {[%clk 0:02:30]} 25. g4 {[%clk 0:03:48.3]}
25... fxg4 {[%clk 0:02:27.1]} 26. Nxg4 {[%clk 0:03:45.1]} 26... Bxg4 {[%clk
0:02:25.6]} 27. hxg4 {[%clk 0:03:44.6]} 27... Ne6 {[%clk 0:02:24.9]} 28. Qc2
{[%clk 0:03:37.4]} 28... Qe8 {[%clk 0:02:17.5]} 29. Ra7 {[%clk 0:03:34.6]} 29...
b5 {[%clk 0:01:52.5]} 30. Ra6 {[%clk 0:03:29.3]} 30... Bf4 {[%clk 0:01:46.1]}
31. Bxb5 {[%clk 0:03:26.8]} 31... cxb5 {[%clk 0:01:05.6]} 32. Rxe6 {[%clk
0:03:24.1]} 32... Qc8 {[%clk 0:01:03.4]} 33. Rxg6+ {[%clk 0:03:00.8]} 33... hxg6
{[%clk 0:01:00.2]} 34. Qxg6+ {[%clk 0:03:00.4]} 34... Kh8 {[%clk 0:00:59.3]} 35.
Qh5+ {[%clk 0:02:59.5]} 35... Kg7 {[%clk 0:00:56.7]} 36. Nh4 {[%clk 0:02:59]}
36... Rh8 {[%clk 0:00:36.2]} 37. Qg6+ {[%clk 0:02:55.3]} 37... Kf8 {[%clk
0:00:32.4]} 38. g3 {[%clk 0:02:54.3]} 38... Qe8 {[%clk 0:00:22.1]} 39. Qf5+
{[%clk 0:02:49.5]} 39... Qf7 {[%clk 0:00:21.4]} 40. Kg2 {[%clk 0:02:42.3]} 40...
Qxf5 {[%clk 0:00:18.4]} 41. gxf5 {[%clk 0:02:41.8]} 41... Bd2 {[%clk 0:00:17.4]}
42. Ng6+ {[%clk 0:02:39.8]} 42... Kg8 {[%clk 0:00:16.8]} 43. Nxe7+ {[%clk
0:02:38.3]} 43... Kf7 {[%clk 0:00:16]} 44. Nxd5 {[%clk 0:02:35.6]} 44... Rd8
{[%clk 0:00:15]} 45. e6+ {[%clk 0:02:33.2]} 45... Ke8 {[%clk 0:00:14.3]} 46.
Nc7+ {[%clk 0:02:30.5]} 46... Ke7 {[%clk 0:00:13.7]} 47. Nxb5 {[%clk 0:02:27.6]}
47... Rd5 {[%clk 0:00:12]} 48. c4 {[%clk 0:02:22.2]} 48... Rxf5 {[%clk
0:00:10.9]} 49. d5 {[%clk 0:02:20.8]} 49... Bxb4 {[%clk 0:00:10]} 50. Nd4 {[%clk
0:02:19.5]} 50... Rg5 {[%clk 0:00:07.9]} 51. Nc6+ {[%clk 0:02:18.3]} 51... Kd6
{[%clk 0:00:07.3]} 52. Nxb4 {[%clk 0:02:17.8]} 52... Rxg3+ {[%clk 0:00:03.1]}
53. Kxg3 {[%clk 0:02:16.4]} 1-0